Cogmind - Beta 12 @@@ ROGUE MODE // 2023.03.07 @ 00:54:40 Player: Delta Epsilon Result: Destroyed by as-57873 with Assembled Blade Performance ------------- Evolutions (0) 0 Regions Visited (4) 800 Robots Destroyed (35) 175 Value Destroyed (855) 855 Prototype IDs (25) 500 Alien Tech Used (0) 0 Bonus (33) 33 TOTAL SCORE: 2363 Bonus ------- Aligned with FarCom 300 Friendly Fire -267 Cogmind --------- Core Integrity 0/250 Matter 265/300 Energy 80/100 System Corruption 0% Temperature Cool (0) Movement Treading (160) Location -9/Mines Parts ------- > --- POWER (1) -------- (None) > --- PROPULSION (2) --- Light Treads Light Treads > --- UTILITY (2) ------ Large Storage Unit > --- WEAPON (2) ------- AWS/Thermal > --- INVENTORY (15) --- Light Ion Engine Light Ion Engine Light Treads Improved Heat Sink Improved Heat Sink Huge Storage Unit Structural Scanner Light Armor Plating Particle Gun Beamcaster Beam Cannon Light Assault Rifle Plasma Flamer Peak State ------------ > --- POWER ------------ Ion Engine > --- PROPULSION ------- Light Treads Light Treads > --- UTILITY ---------- Improved Heat Sink Large Storage Unit > --- WEAPON ----------- AWS/Thermal > --- INVENTORY -------- Light Ion Engine Light Ion Engine Light Treads Improved Heat Sink Huge Storage Unit Structural Scanner Light Armor Plating Particle Gun Beamcaster Beam Cannon Light Assault Rifle Grenade Launcher Plasma Flamer [Rating: 25] Favorites ----------- Power Ion Engine Engine Ion Engine Propulsion Light Treads Treads Light Treads Utility Large Storage Unit Device Improved Heat Sink Storage Large Storage Unit Processor Targeting Computer Protection Light Armor Plating Weapon Beam Cannon Energy Gun Medium Laser Energy Cannon Beam Cannon Ballistic Gun Light Assault Rifle Launcher Grenade Launcher Build | -11 -10 -10 -10 -9 ------- Run | Jun Mat Min Exi Min Slots Evolved . | . . . . . Power . | . . . . . Propulsion . | . . . . . Utility . | . . . . . Weapon . | . . . . . Parts Attached 25 | 6 10 2 2 5 Power 4 | 1 3 . . . Engine 4 | 1 3 . . . Core . | . . . . . Reactor . | . . . . . Propulsion 3 | 2 1 . . . Treads 3 | 2 1 . . . Leg . | . . . . . Wheel . | . . . . . Hover . | . . . . . Flight . | . . . . . Utility 6 | 1 4 . 1 . Device 2 | . 2 . . . Storage 2 | 1 1 . . . Processor 1 | . 1 . . . Hackware . | . . . . . Protection 1 | . . . 1 . Artifact . | . . . . . Weapon 12 | 2 2 2 1 5 Energy Gun 8 | 2 . 2 1 3 Energy Cannon 2 | . 1 . . 1 Ballistic Gun 1 | . 1 . . . Ballistic Cannon . | . . . . . Launcher 1 | . . . . 1 Special Weapon . | . . . . . Impact Weapon . | . . . . . Slashing Weapon . | . . . . . Piercing Weapon . | . . . . . Special Melee Weapon . | . . . . . Unidentified Prototypes . | . . . . . Parts Lost 4 | . 1 . . 3 Power 2 | . 1 . . 1 Propulsion . | . . . . . Utility 1 | . . . . 1 Weapon 1 | . . . . 1 Highest Loss Streak 3 | . 1 . . 3 To Critical Strikes . | . . . . . Average Slot Usage (%) 98 | . 99 100 99 87 Engine 14 | . 14 14 14 14 Treads 27 | . 27 28 28 28 Device 11 | . 11 14 13 . Storage 14 | . 14 14 14 14 Processor 1 | . 2 . . . Protection 1 | . . . . 14 Energy Gun 11 | . 13 7 14 13 Energy Cannon 10 | . 9 14 13 2 Ballistic Gun 4 | . 5 6 . . Naked Turns . | . . . . . Heaviest Build 36 | 11 30 34 36 36 Greatest Support 40 | 40 40 40 40 40 Greatest Overweight (x) . | . . . . . Average Overweight (x) . | . . . . . Largest Inventory Capacity 15 | 8 15 15 15 15 Average Capacity 14 | 6 14 15 15 15 Most Carried 15 | 1 11 15 15 15 Average Carried 9 | . 6 11 13 13 Final Capacity 15 | 8 15 15 15 15 Final Carried 13 | 1 11 13 13 13 Class Distribution -------------------- 100% | Mutant Dominant Class ---------------- Mutant | -10/Materials Mutant | -10/Mines Mutant | -10/Exiles Mutant | -9/Mines Resources | -11 -10 -10 -10 -9 ----------- Run | Jun Mat Min Exi Min Matter Collected 436 | 260 107 22 . 47 Remotely . | . . . . . Salvage Created 1297 | . 827 219 . 251 Parts 58 | . 37 8 . 13 Haulers Intercepted 2 | . 2 . . . Recyclers Shooed . | . . . . . Parts Field Recycled . | . . . . . Retrieved Matter . | . . . . . Parts Self-Destructed . | . . . . . Prevented . | . . . . . Kills | -11 -10 -10 -10 -9 ------- Run | Jun Mat Min Exi Min Combat Hostiles Destroyed 33 | . 16 3 . 14 Melee 1 | . 1 . . . Guns 16 | . 6 . . 10 Cannons 11 | . 8 3 . . AOE 4 | . . . . 4 Classes Destroyed 8 | . 6 . . 2 Worker 3 | . 1 2 . . Hauler 2 | . 2 . . . Recycler 1 | . 1 . . . Watcher 3 | . 3 . . . Swarmer 5 | . 2 . . 3 Grunt 19 | . 14 3 . 2 Brawler 1 | . . . . 1 Assembled 8 | . . . . 8 Thug 1 | . . 1 . . Best Kill Streak 8 | . 3 2 . 8 Combat Bots Only 8 | . 3 2 . 8 Max Kills in Single Turn 2 | . 1 1 . 2 Gunslinging . | . . . . . Exploded 2 | . . . . 2 Melee 1 | . 1 . . . Uniques/NPCs Destroyed . | . . . . . Combat | -11 -10 -10 -10 -9 -------- Run | Jun Mat Min Exi Min Damage Taken 1254 | . 708 134 . 412 Core 260 | . 161 34 . 65 Absorbed by Shields . | . . . . . Regen/Repaired (Parts) 115 | . 115 . . . Core Remaining (%) 100 | 100 . . . . Volleys Fired 89 | . 71 15 . 3 Largest 2 | . 2 2 . 1 Hottest 125 | . 110 125 . 30 Shots Fired 208 | . 142 30 . 36 Gun 150 | . 102 15 . 33 Cannon 55 | . 40 15 . . Launcher 3 | . . . . 3 Special . | . . . . . Kinetic 25 | . 20 5 . . Thermal 180 | . 122 25 . 33 Explosive 3 | . . . . 3 Electromagnetic . | . . . . . Robot Hit Streak 12 | . 12 4 . 9 Robot Miss Streak 4 | . 4 2 . 2 Penetration Max . | . . . . . Secondary Targets . | . . . . . Autonomous 33 | . . . . 33 Shots Hit Robots 144 | . 98 19 . 27 Core Hits 69 | . 34 8 . 27 Critical Kills . | . . . . . Critical Parts Destroyed . | . . . . . Critical Strikes 5 | . 3 2 . . Burn 5 | . 3 2 . . Melee Attacks . | . . . . . Impact . | . . . . . Slashing . | . . . . . Piercing . | . . . . . Sneak Attacks . | . . . . . Combat Hostiles . | . . . . . Follow-up Attacks . | . . . . . Damage Inflicted 2826 | . 1303 333 . 1190 Guns 1671 | . 807 109 . 755 Cannons 667 | . 475 192 . . Explosions 421 | . . . . 421 Melee . | . . . . . Ramming 67 | . 21 32 . 14 Kinetic 97 | . 82 15 . . Thermal 2241 | . 1200 286 . 755 Explosive 421 | . . . . 421 Electromagnetic . | . . . . . Impact . | . . . . . Slashing . | . . . . . Piercing . | . . . . . Highest Corruption . | . . . . . Average Corruption . | . . . . . Corruption Purged . | . . . . . Corruption Blocked . | . . . . . Overload Shots . | . . . . . Overflow Damage 9 | . . . . 9 Projectiles . | . . . . . Explosions 9 | . . . . 9 Melee . | . . . . . Knockbacks 2 | . 1 1 . . Impact 2 | . 1 1 . . Kinetic . | . . . . . Secondary . | . . . . . Self-Inflicted Damage . | . . . . . Shots . | . . . . . Rammed 14 | . 6 6 . 2 Targets Rammed 18 | . 8 8 . 2 Kicked . | . . . . . Crushed 4 | . 2 2 . . Highest Temperature 264 | . 264 168 . 5 Average Temperature 66 | . 69 58 . 3 Received Heat Transfer 548 | . 366 90 . 92 Effects 3 | . 3 . . . Interference 3 | . 3 . . . Siege Activations . | . . . . . Robots Corrupted . | . . . . . Combat Hostiles . | . . . . . Parts Fried . | . . . . . Impact Corruptions . | . . . . . Robots Melted 1 | . 1 . . . Combat Hostiles 1 | . 1 . . . Parts Melted 9 | . 8 . . 1 Heat Transferred 4941 | . 3202 777 . 962 Parts Sabotaged . | . . . . . Parts Stolen . | . . . . . Parts Stripped . | . . . . . Power Chain Reactions . | . . . . . Missiles Intercepted . | . . . . . Alert | -11 -10 -10 -10 -9 ------- Run | Jun Mat Min Exi Min Peak Influence 202 | . 202 80 . 162 Initial 67 | . . 67 . . Average 73 | . 104 39 . 70 Maximum Alert Level 1 | . 1 . . . Low Security (%) 99 | 100 99 100 . 100 Level 1 . | . . . . . Level 2 . | . . . . . Level 3 . | . . . . . Level 4 . | . . . . . Level 5 . | . . . . . High Security . | . . . . . Max Security . | . . . . . Squads Dispatched 6 | . 6 . . . Investigation 4 | . 4 . . . Extermination . | . . . . . Reinforcement 2 | . 2 . . . Assault . | . . . . . Garrison . | . . . . . Intercept . | . . . . . Searches Triggered . | . . . . . Construction Impeded . | . . . . . Haulers Reinforced . | . . . . . Active Scanning Responses . | . . . . . Cargo Convoy Interrupts . | . . . . . Stealth | -11 -10 -10 -10 -9 --------- Run | Jun Mat Min Exi Min Distress Signals . | . . . . . Communications Jammed . | . . . . . Distress Signals . | . . . . . Times Spotted 49 | . 25 3 . 21 Peak Tracking Total 11 | . 3 2 . 11 Tactical Retreats 2 | . 1 . . 1 Traps | -11 -10 -10 -10 -9 ------- Run | Jun Mat Min Exi Min Traps Triggered 2 | . 2 . . . Indirectly . | . . . . . Trap Hack Attempts . | . . . . . Triggered . | . . . . . Disarmed . | . . . . . Reprogrammed . | . . . . . Reused . | . . . . . Traps Extracted . | . . . . . Installed . | . . . . . Triggered . | . . . . . Machines | -11 -10 -10 -10 -9 ---------- Run | Jun Mat Min Exi Min Machines Disabled 1 | . 1 . . . Max in Single Turn 1 | . 1 . . . Machines Repaired . | . . . . . Machines Sabotaged . | . . . . . Overloaded Fab Kills . | . . . . . Hacking | -11 -10 -10 -10 -9 --------- Run | Jun Mat Min Exi Min Machines Accessed 6 | . 4 . 2 . Terminals 2 | . 2 . . . Fabricators . | . . . . . Repair Stations 1 | . 1 . . . Recycling Units 1 | . 1 . . . Scanalyzers . | . . . . . Garrison Access . | . . . . . Total Hacks 15 | . 13 . 2 . Successful 8 | . 6 . 2 . Failed 7 | . 7 . . . Catastrophic 2 | . 2 . . . Database Lockouts . | . . . . . Manual 10 | . 9 . 1 . Terminals 8 | . 8 . . . Fabricators . | . . . . . Repair Stations 2 | . 2 . . . Recycling Units 3 | . 3 . . . Scanalyzers . | . . . . . Garrison Access . | . . . . . Terminal Hacks 4 | . 2 . 2 . Record 1 | . . . 1 . Part Schematic 1 | . 1 . . . Prototype ID Bank 1 | . 1 . . . EX-Prototype ID Bank 1 | . . . 1 . Fabricator Hacks . | . . . . . Repair Station Hacks 2 | . 2 . . . Scan Component 1 | . 1 . . . Repair 1 | . 1 . . . Recycling Unit Hacks 1 | . 1 . . . Retrieve Components 1 | . 1 . . . Scanalyzer . | . . . . . Garrison Access Hacks . | . . . . . Unauthorized Hacks 1 | . 1 . . . Terminals . | . . . . . Fabricators . | . . . . . Repair Stations . | . . . . . Recycling Units 1 | . 1 . . . Tunnel 1 | . 1 . . . Scanalyzers . | . . . . . Garrison Access . | . . . . . Data Cores Recovered . | . . . . . Used . | . . . . . Hacking Detections 2 | . 2 . . . Full Trace Events 1 | . 1 . . . Feedback Events . | . . . . . Feedback Blocked . | . . . . . Robot Schematics Acquired . | . . . . . Robots Built . | . . . . . Authchips . | . . . . . Time . | . . . . . Total Robot Build Rating . | . . . . . Part Schematics Acquired 1 | . 1 . . . Parts Built . | . . . . . Authchips . | . . . . . Time . | . . . . . Total Part Build Rating . | . . . . . Parts Repaired 1 | . 1 . . . Time 26 | . 26 . . . Parts Recycled . | . . . . . Recycled Matter . | . . . . . Retrieved Matter . | . . . . . Retrieved Components 9 | . 9 . . . Parts Scanalyzed . | . . . . . Part Schematics Acquired . | . . . . . Parts Damaged . | . . . . . Bothacking | -11 -10 -10 -10 -9 ------------ Run | Jun Mat Min Exi Min Used RIF Installer . | . . . . . Robots Hacked . | . . . . . Non-combat . | . . . . . Combat . | . . . . . Robot Hacks Applied . | . . . . . Relay Couplers Released . | . . . . . Fabnet Peak Effective % . | . . . . . Robots Rewired . | . . . . . Allies Hacked . | . . . . . Hacks Repelled . | . . . . . Allies | -11 -10 -10 -10 -9 -------- Run | Jun Mat Min Exi Min Total Allies 1 | . . 1 . . Largest Group 1 | . . 1 . . Highest-Rated Group 31 | . . 31 . . Highest-Rated Ally 31 | . . 31 . . Total Orders . | . . . . . Ally Attacks . | . . . . . Total Damage . | . . . . . Kills . | . . . . . Allies Corrupted . | . . . . . Allies Melted . | . . . . . Intel | -11 -10 -10 -10 -9 ------- Run | Jun Mat Min Exi Min Robot Analysis Total . | . . . . . Derelict Logs Recovered 2 | . . 1 . 1 Drone Launches . | . . . . . Drone Recoveries . | . . . . . Exploration | -11 -10 -10 -10 -9 ------------- Run | Jun Mat Min Exi Min Turns Passed 3477 | 78 1493 1189 371 346 Spaces Moved 1880 | 44 729 692 225 190 Core 2 | 2 . . . . Treads 1878 | 42 729 692 225 190 Legs . | . . . . . Wheels . | . . . . . Hover . | . . . . . Flight . | . . . . . Fastest Speed 50 | 50 160 160 160 160 Average Speed 159 | 155 160 160 160 160 Slowest Speed 160 | 160 160 160 160 160 Overloaded Moves . | . . . . . Propulsion Burnouts . | . . . . . Robots Hopped . | . . . . . Cave-ins Triggered . | . . . . . Exploration Rate (%) 58 | 5 87 97 60 42 Regions Visited 4 Branch Regions 3 Pre-discovered Areas 4 | . 1 1 1 1 Known Exits Taken . | . . . . . Unknown Exits Taken 4 | 1 1 1 1 . Scrap Searched 1 | . . 1 . . Spaces Dug . | . . . . . Terrain Destroyed 21 | . . . . 21 Melee . | . . . . . Projectile 7 | . . . . 7 AOE 14 | . . . . 14 Terrain Rammed . | . . . . . Walls Destroyed . | . . . . . Machines Disabled . | . . . . . Actions | -11 -10 -10 -10 -9 --------- Run | Jun Mat Min Exi Min Total 2168 | 51 909 740 238 230 Wait 129 | 1 81 18 5 24 Move 1876 | 43 728 691 224 190 Hop . | . . . . . Pick Up 19 | 1 10 4 2 2 Fast Attach 7 | 6 1 . . . Attach 8 | . 2 . 1 5 Detach 5 | . . . 2 3 Swap 10 | . 7 2 1 . Drop 7 | . 1 2 3 1 Fire 89 | . 71 15 . 3 Melee . | . . . . . Ram . | . . . . . Kick . | . . . . . Crush 18 | . 8 8 . 2 Escape Stasis . | . . . . . Rewire . | . . . . . Trap . | . . . . . Miscellaneous . | . . . . . Route ------- -11/Junkyard -10/Materials (discovered 5 exits: [*Mat x3] / [*Min x2]) -10/Mines (discovered 3 exits: [*Mat x2] / *Exi) -10/Exiles -9/Mines History --------- Turn | Location | Event 34 | -11/Junkyard | Discovered new exit (range 16) 79 | -11/Junkyard | Entered Materials 311 | -10/Materials | Build established: Mutant 403 | -10/Materials | Discovered new exit (range 15) 808 | -10/Materials | Repaired Lgt. Treads 917 | -10/Materials | Discovered new exit (range 13) 979 | -10/Materials | Discovered new exit (range 10) 994 | -10/Materials | Discovered new exit (range 12) 1020 | -10/Materials | Core integrity fell below 50% 1291 | -10/Materials | Discovered new exit (range 16) 1572 | -10/Materials | Entered Mines 1573 | -10/Mines | Met a Derelict bent on vengeance 1716 | -10/Mines | Discovered new exit (range 4) 2212 | -10/Mines | A weapon hastily lodged in a ceiling crevice suddenly fell to the ground 2239 | -10/Mines | Learned location of Storage (-7) 2251 | -10/Mines | Discovered new exit (range 7) 2520 | -10/Mines | Received a Mining Laser from a helpful Derelict 2753 | -10/Mines | Deemed a non-threat by the Exiles lab entrance 2754 | -10/Mines | Discovered new exit (range 5) 2761 | -10/Mines | Entered Exiles 2800 | -10/Exiles | Met 8R-AWN 2829 | -10/Exiles | Met EX-HEX 2872 | -10/Exiles | Met EX-BIN 2893 | -10/Exiles | Aligned with FarCom system 2894 | -10/Exiles | Given EX-Vault access code 2936 | -10/Exiles | Opened EX-Vault 2947 | -10/Exiles | Found AWS/Thermal 2982 | -10/Exiles | Warned to stay clear of 0b10 Research branches 3047 | -10/Exiles | Met EX-DEC 3057 | -10/Exiles | Learned location of Zion (-7) 3105 | -10/Exiles | Discovered new exit (range 12) 3132 | -10/Exiles | Left Exiles lab with AWS/Thermal 3132 | -10/Exiles | Entered Mines 3186 | -9/Mines | Learned Materials garrison access intel 3242 | -9/Mines | Core integrity fell below 20% 3446 | -9/Mines | Assembled infested the area 3478 | -9/Mines | Destroyed by as-57873 with Assembled Blade Last Messages --------------- 03416_ Acquired 20 matter. 03430_ Slammed into U-05 Engineer. 03446_ ALERT: Infestation in the mines, dispatching Demolisher response squad. 03459_ as-87118 destroyed. 03463_ as-49741 destroyed. 03464_ Destroyed Asb. F-torch. 03465_ as-67123 destroyed. 03466_ as-34062 destroyed. 03469_ Dropped AWS/Thermal. 03471_ Lgt. Armor Plating destroyed. 03471_ as-88459 destroyed. 03471_ as-74093 destroyed. 03473_ as-31510 destroyed. 03473_ Destroyed Asb. Rifle. 03473_ as-77277 destroyed. 03474_ Ion Engine destroyed. 03476_ as-01184 destroyed. 03477_ Acquired AWS/Thermal. 03477_ Grenade Launcher destroyed. Map ----- +----------------------------------------------------+ | | | | | | | | | | | ????????????????????????????????????????????????? | | ????????????????????????????????????????????????? | | ?##########?????????????????????????????????????? | | ?# #????????????????###??????????????????? | | ## #???????????????# ###????????????????? | | #??????????????? ?????????????????? | | ## #??????????????? #?????????????????? | | ?# ########??????????????? #??????????????????? | | ## ##########????????????? #???????????????????? | | [[! ##??????????## ##??????????????????? | | %*%= #?????###### #??????????????????? | | ########% #?????# #######????????????? | | ???????# ##?????# ?????????????? | | ???????# #??????# ???????????????? | | ???????# ######## a ????????????????????? | | ???????# % ##???????????????????? | | ???????## ########## %a #???????????????????? | | ????????####????????# % #???????????????????? | | ?????????????????????# #???????d???????????? | | ??????????????????????##a%a #???????d???????????? | | ???????????????????????# @ ##???????????????????? | | ???????????????????????# ##????????????????????? | | ???????????????????????# #?????????????????????? | | ???????????????????????# $#?????????????????????? | | ?????????????????????? #?????????????????????? | | ????????????????????? ####?????????????????????? | | ???????????????????? ?????????????????????????? | | ?????????????????? ??????????????????????????? | | ????????????????? ??????????????????????????? | | ????????????????# ???????????????????????????? | | ##?????????????# ????????????????????????????? | | #???????????? ggg??????????????????????????? | | #???????????? ?????????????????????????????? | | #???????????? #??????????????????????????????? | | ????????????????????????????????????????????????? | | ????????????????????????????????????????????????? | | ????????????????????????????????????????????????? | | ????????????????????????????????????????????????? | | ????????????????????????????????????????????????? | | ????????????????????????????????????????????????? | | ????????????????????????????????????????????????? | | ????????????????????????????????????????????????? | | ????????????????????????????????????????????????? | | ????????????????????????????????????????????????? | | ????????????????????????????????????????????????? | +----------------------------------------------------+ Best States ------------- Heat Dissipation 39 Energy Generation 10 Energy Capacity 250 Matter Stores 300 Matter Capacity 300 Sight Range 16 Terrain Scan Density 10 Armor Coverage 150 Evasion (%) 40 Targeting Accuracy 5 Recoil Reduction 2 Item Schematics ----------------- Huge Storage Unit | -10/Materials | Hacked Robot Schematics ------------------ None Fabricated ------------ Nothing Alien Tech Used ----------------- None Achievements -------------- None Challenges ------------ None Game ------ Seed SalvageCloakingThermoblaster Manual? 0 Play Time 00:17:03 Cumulative 125.8 hours Start 2023.03.07 @ 00:32:59 End 2023.03.07 @ 00:54:40 Sessions 1 Manual Loads 0 Difficulty Rogue Special Mode None Game No. 81 Rogue 81 Adventurer 0 Explorer 0 Win Type - Total 1 Types 0/0/1/0/0/0/0/0/0 Lore% 53 Gallery% 67 Achievement% 55 Wizard Run 0 Options --------- ASCII 1 Keyboard 1 Movement Numpad Keybinds 0 Fullscreen 0 Font 16/Terminus Map View 76x50 Tactical HUD 1 Map Filters NONE Filters NONE Steam 1 RUN: 1d734a91-97c4-48c4-956d-edfd96aeb595